fUST/lending_fUST_20251121
["ID","MTS","AMOUNT","RATE_DAILY","PERIOD"]
[394575153,1763728238491,-500.0,0.00014486,2]
[394575154,1763728238501,-500.0,0.00014486,2]
[394575155,1763728238511,-500.0,0.00014486,2]
[394575156,1763728238521,-500.0,0.00014486,2]
[394575157,1763728238537,-500.0,0.00014486,2]
[394575158,1763728238547,-500.0,0.00014486,2]
[394575159,1763728238559,-500.0,0.00014486,2]
[394575160,1763728238568,-500.0,0.00014486,2]
[394575161,1763728238578,-500.0,0.00014486,2]
[394575162,1763728238587,-500.0,0.00014486,2]
[394575163,1763728238596,-500.0,0.00014486,2]
[394575164,1763728238606,-500.0,0.00014486,2]
[394575165,1763728238616,-500.0,0.00014486,2]
[394575166,1763728238626,-500.0,0.00014486,2]
[394575167,1763728238636,-500.0,0.00014486,2]
[394575168,1763728238646,-500.0,0.00014486,2]
[394575169,1763728238655,-598.23820017,0.00014486,2]
[394575170,1763728238666,-500.0,0.00014486,2]
[394575171,1763728238676,-500.0,0.00014486,2]
[394575172,1763728238685,-500.0,0.00014486,2]
[394575173,1763728238695,-500.0,0.00014486,2]
[394575174,1763728238705,-500.0,0.00014486,2]
[394575175,1763728238714,-500.0,0.00014486,2]
[394575176,1763728238724,-500.0,0.00014486,2]
[394575177,1763728238734,-500.0,0.00014486,2]
[394575178,1763728238744,-500.0,0.00014486,2]
[394575179,1763728238753,-500.0,0.00014486,2]
[394575180,1763728238763,-279.07048976,0.00014486,2]
[394575181,1763728238777,-500.0,0.00014486,2]
[394575182,1763728238788,-500.0,0.00014486,2]
[394575183,1763728238797,-196.27447296,0.00014486,2]
[394575184,1763728238806,-3225.54383392,0.00014486,2]
[394575185,1763728238815,-3225.54383392,0.00014486,2]
[394575186,1763728238823,-3225.54383392,0.00014486,2]
[394575187,1763728238832,-3225.54383392,0.00014486,2]
[394575188,1763728238840,-3225.54383392,0.00014486,2]
[394575189,1763728238848,-3225.54383392,0.00014486,2]
[394575190,1763728238857,-3225.54383392,0.00014486,2]
[394575191,1763728238867,-3225.54383392,0.00014486,2]
[394575192,1763728238876,-3225.54383392,0.00014486,2]
[394575193,1763728238886,-500.0,0.00014486,2]
[394575194,1763728238895,-200.0,0.00014486,2]
[394575195,1763728238906,-500.0,0.00014646,2]
[394575196,1763728238915,-499.99999997,0.00014646,2]
[394575197,1763728238925,-500.0,0.00014647,2]
[394575198,1763728238935,-500.0,0.00014649,2]
[394575199,1763728238944,-500.0,0.00014649,2]
[394575200,1763728238954,-562.91410595,0.00014651,2]
[394575201,1763728238963,-500.0,0.00014651,2]
[394575202,1763728238973,-500.0,0.00014651,2]
[394575203,1763728238983,-500.0,0.00014651,2]
[394575204,1763728238992,-151.0,0.00014651,2]
[394575205,1763728239003,-29846.73282291,0.00014652,2]
[394575206,1763728239012,-436.20531373,0.00014773,2]
[394575207,1763728239027,-647.9302299,0.00014773,2]
[394575208,1763728239038,-500.0,0.00014773,2]
[394575209,1763728239047,-425.01706311,0.00014773,2]
[394575210,1763728239057,-500.0,0.00014773,2]
[394575211,1763728239068,-501.24031622,0.00014773,2]
[394575212,1763728239077,-631.73360846,0.00014773,2]
[394575213,1763728239088,-500.0,0.00014773,2]
[394575214,1763728239099,-500.0,0.00014794,2]
[394575215,1763728239109,-500.0,0.00014794,2]
[394575216,1763728239119,-216.07380226,0.00014873,2]
[394575217,1763728239131,-500.0,0.00014873,2]
[394575218,1763728239140,-500.0,0.00014873,2]
[394575219,1763728239150,-500.0,0.00014894,2]
[394575220,1763728239161,-500.0,0.00014894,2]
[394575221,1763728239171,-5672.71,0.00014894,2]
[394575222,1763728239182,-5672.71,0.00014894,2]
[394575223,1763728239192,-5672.71,0.00014894,2]
[394575224,1763728239202,-5672.71,0.00014894,2]
[394575225,1763728239214,-5672.71,0.00014894,2]
[394575226,1763728239226,-500.0,0.00014895,2]
[394575227,1763728239235,-500.0,0.00014895,2]
[394575228,1763728239244,-151.0,0.000149,2]
[394575229,1763728239254,-500.0,0.000149,2]
[394575230,1763728239264,-501.75107031,0.000149,2]
[394575231,1763728239279,-500.0,0.000149,2]
[394575232,1763728239289,-500.0,0.000149,2]
[394575233,1763728239299,-500.0,0.000149,2]
[394575234,1763728239308,-500.0,0.000149,2]
[394575235,1763728239318,-522.70734734,0.000149,2]
[394575236,1763728239327,-500.0,0.00014953,2]
[394575237,1763728239338,-216.93751187,0.00014953,2]
[394575238,1763728239348,-500.0,0.00014953,2]
[394575239,1763728239358,-164.7886265,0.00014953,2]
[394575240,1763728239367,-500.0,0.00014953,2]
[394575241,1763728239377,-501.09561516,0.00014953,2]
[394575242,1763728239386,-500.0,0.00014953,2]
[394575243,1763728239396,-500.0,0.00014953,2]
[394575244,1763728239406,-500.0,0.00014953,2]
[394575245,1763728239415,-528.8130812,0.00015,3]
[394575246,1763728239424,-531.07816397,0.00015068,2]
[394575247,1763728239435,-213.750185,0.00015068,2]
[394575248,1763728239444,-500.0,0.00015204,2]
[394575249,1763728239454,-500.0,0.00015204,2]
[394575250,1763728239463,-500.0,0.00015204,2]
[394575251,1763728239473,-500.98176125,0.00015204,2]
[394575252,1763728239482,-500.0,0.00015204,2]
[394575253,1763728239492,-564.88277994,0.00015204,2]
[394575254,1763728239502,-500.0,0.00015204,2]
[394575256,1763728239511,-500.0,0.00015204,2]
[394575257,1763728239525,-500.0,0.00015204,2]
[394575258,1763728239536,-500.0,0.00015204,2]
[394575259,1763728239546,-504.2662845,0.00015204,2]
[394575260,1763728239556,-500.0,0.00015204,2]
[394575261,1763728239565,-500.0,0.00015204,2]
[394575262,1763728239575,-500.0,0.00015204,2]
[394575263,1763728239585,-500.0,0.00015204,2]
[394575265,1763728239594,-500.0,0.00015204,2]
[394575266,1763728239603,-500.90072359,0.00015204,2]
[394575267,1763728239614,-500.0,0.00015204,2]
[394575268,1763728239624,-500.0,0.00015204,2]
[394575269,1763728239633,-578.22864742,0.00015204,2]
[394575270,1763728239643,-500.0,0.00015204,2]
[394575271,1763728239652,-500.0,0.00015204,2]
[394575272,1763728239662,-500.0,0.00015204,2]
[394575281,1763728239838,-300.0,0.00015252,2]
[394575283,1763728239848,-192.82425,0.0001532,2]
[394575285,1763728239858,-500.0,0.00015321,2]
[394575287,1763728239867,-506.45409252,0.00015321,2]
[394575289,1763728239877,-501.11008755,0.00015321,2]
[394575291,1763728239887,-500.0,0.00015367,2]
[394575293,1763728239896,-533.44581391,0.00015367,2]
[394575296,1763728239906,-511.2358338,0.00015367,2]
[394575298,1763728239915,-418.18895891,0.00015367,2]
[394575300,1763728239925,-501.18309285,0.00015421,2]
[394575303,1763728239934,-1000.0,0.00015421,2]
[394575306,1763728239944,-955.03075088,0.00015501,2]
[394575308,1763728239954,-1000.0,0.00015501,2]
[394575310,1763728239963,-1000.0,0.00015501,2]
[394575312,1763728239972,-161.11476178,0.0001559,2]
[394575314,1763728239982,-500.0,0.0001559,2]
[394575316,1763728239992,-158.63,0.0001572,2]
[394575318,1763728240002,-500.0,0.00015752,2]
[394575320,1763728240011,-500.0,0.00015752,2]
[394575322,1763728240025,-500.0,0.00015752,2]
[394575324,1763728240035,-500.4540326,0.00015752,2]
[394575326,1763728240046,-1077.48426493,0.00015752,2]
[394575329,1763728240056,-1000.0,0.00015752,2]
[394575332,1763728240065,-1000.0,0.00015752,2]
[394575334,1763728240075,-1000.0,0.00015752,2]
[394575336,1763728240085,-940.20457467,0.00015752,2]
[394575338,1763728240094,-856.91178759,0.00015752,2]
[394575340,1763728240104,-1000.0,0.00015752,2]
[394575342,1763728240114,-1000.0,0.00015752,2]
[394575344,1763728240123,-1000.0,0.00015752,2]
[394575346,1763728240132,-1000.0,0.00015752,2]
[394575348,1763728240141,-1000.0,0.00015752,2]
[394575350,1763728240151,-1000.0,0.00015752,2]
[394575353,1763728240160,-1680.0,0.00015824,2]
[394575355,1763728240169,-420.0,0.00015861,2]
[394575357,1763728240185,-420.0,0.00015861,2]
[394575359,1763728240194,-151.0,0.000159,2]
[394575361,1763728240203,-428.66898174,0.00015915,2]
[394575367,1763728240254,-571.33101826,0.00015915,2]
[394575369,1763728240264,-162.94797493,0.00015968,2]
[394575387,1763728244651,-254.01130894,0.00015204,2]
[394575388,1763728244714,-245.98869106,0.00015204,2]
[394575389,1763728244724,-1000.0,0.00015752,2]
[394575390,1763728244734,-337.05202507,0.00015968,2]
[394575391,1763728244743,-151.0,0.0001599,2]
[394575392,1763728244753,-151.0,0.0001599,2]
[394575393,1763728244763,-151.0,0.0001599,2]
[394575394,1763728244773,-151.0,0.0001599,2]
[394575395,1763728244786,-331.339116,0.0001599,2]
[394575396,1763728244796,-331.339116,0.0001599,2]
[394575397,1763728244805,-331.339116,0.0001599,2]
[394575398,1763728244815,-331.339116,0.0001599,2]
[394575399,1763728244824,-152.625312,0.0001599,2]
[394575400,1763728244834,-151.0,0.0001599,2]
[394575401,1763728244843,-151.0,0.0001599,2]
[394575402,1763728244853,-151.0,0.0001599,2]
[394575403,1763728244862,-218.17346,0.0001599,2]
[394575404,1763728244872,-218.17346,0.0001599,2]
[394575405,1763728244882,-218.17346,0.0001599,2]
[394575406,1763728244891,-218.17346,0.0001599,2]
[394575407,1763728244904,-151.0,0.0001599,2]
[394575408,1763728244913,-151.0,0.0001599,2]
[394575409,1763728244922,-151.0,0.0001599,2]
[394575410,1763728244932,-151.0,0.0001599,2]
[394575411,1763728244941,-187.1986547,0.00016049,2]
[394575412,1763728244950,-646.07733284,0.00016049,2]
[394575413,1763728244959,-302.60687972,0.00016233,2]
[394575414,1763728244969,-500.0,0.00016233,2]
[394575415,1763728244978,-348.64468311,0.00016233,2]
[394575416,1763728244988,-973.67276446,0.000163,2]
[394575417,1763728244998,-500.0,0.000163,2]
[394575418,1763728245008,-357.92254376,0.000163,2]
[394575419,1763728245018,-500.0,0.000163,2]
[394575420,1763728245031,-985.54152847,0.000163,2]
[394575421,1763728245041,-1000.0,0.000163,2]
[394575422,1763728245050,-158.98484408,0.00016313,2]
[394575423,1763728245060,-151.0,0.00016313,2]
[394575424,1763728245069,-151.0,0.00016313,2]
[394575425,1763728245079,-151.0,0.00016313,2]
[394575426,1763728245089,-151.0,0.00016313,2]
[394575427,1763728245099,-151.0,0.00016313,2]
[394575428,1763728245109,-151.0,0.00016313,2]
[394575429,1763728245119,-151.0,0.00016313,2]
[394575430,1763728245129,-151.0,0.00016313,2]
[394575431,1763728245140,-151.0,0.00016313,2]
[394575432,1763728245156,-151.0,0.00016313,2]
[394575433,1763728245167,-151.0,0.00016313,2]
[394575434,1763728245178,-151.0,0.00016313,2]
[394575435,1763728245189,-298.04034,0.00016313,2]
[394575436,1763728245200,-151.0,0.00016313,2]
[394575437,1763728245213,-204.0,0.00016438,2]
[394575438,1763728245223,-500.0,0.00016438,2]
[394575439,1763728245236,-500.0,0.00016438,2]
[394575442,1763728245246,-500.0,0.00016438,2]
[394575443,1763728245419,-500.0,0.00016438,2]
[394575444,1763728245430,-286.25566983,0.00016438,2]
[394575445,1763728245440,-1000.0,0.00016463,2]
[394575446,1763728245450,-500.0,0.0001675,2]
[394575447,1763728245460,-203.9694317,0.0001675,2]
[394575448,1763728245470,-444.95278722,0.00016781,2]
[394575449,1763728245480,-151.0,0.000168,2]
[394575450,1763728245491,-283.66364,0.0001699,2]
[394575451,1763728245501,-283.66364,0.0001699,2]
[394575452,1763728245511,-283.66364,0.0001699,2]
[394575453,1763728245521,-283.66364,0.0001699,2]
[394575454,1763728245538,-151.0,0.0001699,2]
[394575455,1763728245548,-208.0,0.00017368,2]
[394575456,1763728245558,-720.0,0.00017407,2]
[394575457,1763728245568,-267.365697,0.00017408,2]
[394575458,1763728245580,-267.365697,0.00017408,2]
[394575459,1763728245590,-267.365697,0.00017408,2]
[394575460,1763728245599,-267.365697,0.00017408,2]
[394575461,1763728245609,-155.857041,0.00017408,2]
[394575462,1763728245619,-155.857041,0.00017408,2]
[394575463,1763728245628,-155.857041,0.00017408,2]
[394575464,1763728245638,-155.857041,0.00017408,2]
[394575465,1763728245648,-192.82425,0.00017575,2]
[394575466,1763728245658,-3800.9875852,0.00017743,2]
[394575467,1763728245668,-151.0,0.000178,2]
[394575468,1763728245679,-160.0,0.0001786,2]
[394575470,1763728245688,-989.0,0.00017952,2]
[394575472,1763728245698,-2151.0,0.00017952,2]
[394575473,1763728245708,-630.0,0.00017952,2]
[394575474,1763728245717,-414.0,0.00017952,2]
[394575475,1763728245727,-5672.71,0.00017988,2]
[394575476,1763728245736,-5672.71,0.00017988,2]
[394575477,1763728245745,-38784.63886079,0.0001799,2]
[394575483,1763728246481,-4279.55676052,0.0001799,2]
[394575484,1763728246492,-300.0,0.00018408,2]
[394575485,1763728246502,-231.0,0.00018438,2]
[394575486,1763728246512,-213.750185,0.00018493,2]
[394575488,1763728246521,-151.0,0.000188,2]
[394575490,1763728246535,-1488.97917989,0.00018927,3]
[394575492,1763728246544,-156.135253,0.0001899,2]
[394575493,1763728246554,-151.0,0.0001899,2]
[394575494,1763728246564,-151.0,0.0001899,2]
[394575495,1763728246574,-151.0,0.0001899,2]
[394575497,1763728246583,-167.325024,0.0001899,2]
[394575499,1763728246593,-151.0,0.0001899,2]
[394575500,1763728246603,-151.0,0.0001899,2]
[394575501,1763728246613,-153.315335,0.0001899,2]
[394575502,1763728246622,-151.0,0.0001899,2]
[394575503,1763728246631,-151.0,0.0001899,2]
[394575504,1763728246641,-483.739597,0.0001899,2]
[394575505,1763728246651,-483.739597,0.0001899,2]
[394575506,1763728246660,-483.739597,0.0001899,2]
[394575507,1763728246670,-483.739597,0.0001899,2]
[394575508,1763728246680,-2993.65085,0.0001899,2]
[394575509,1763728246690,-2993.65085,0.0001899,2]
[394575510,1763728246700,-2993.65085,0.0001899,2]
[394575511,1763728246709,-2993.65085,0.0001899,2]
[394575512,1763728246718,-6491.43248892,0.00019,2]
[394575513,1763728246727,-153.51504231,0.00019473,2]
[394575514,1763728246737,-250.0,0.0001969,2]
[394575515,1763728246746,-209.40437684,0.0001969,2]
[394575516,1763728246755,-250.0,0.0001969,2]
[394575517,1763728246765,-250.0,0.0001969,2]
[394575518,1763728246774,-250.0,0.0001969,2]
[394575519,1763728246792,-250.0,0.0001969,2]
[394575520,1763728246801,-250.0,0.0001969,2]
[394575521,1763728246811,-250.0,0.0001969,2]
[394575522,1763728246820,-401.42067728,0.0001969,2]
[394575523,1763728246833,-98.57932272,0.0001969,2]
[394575524,1763728246843,-500.0,0.0001969,2]
[394575525,1763728246852,-500.0,0.0001969,2]
[394575526,1763728246862,-500.0,0.0001969,2]
[394575527,1763728246872,-500.0,0.0001969,2]
[394575528,1763728246883,-500.0,0.0001969,2]
[394575529,1763728246891,-500.0,0.0001969,2]
[394575530,1763728246901,-500.0,0.0001969,2]
[394575531,1763728246911,-500.0,0.0001969,2]
[394575532,1763728246921,-250.0,0.0001969,2]
[394575533,1763728246930,-250.0,0.0001969,2]
[394575534,1763728246940,-250.0,0.0001969,2]
[394575535,1763728246950,-250.0,0.0001969,2]
[394575536,1763728246960,-250.0,0.0001969,2]
[394575537,1763728246969,-250.0,0.0001969,2]
[394575538,1763728246979,-250.0,0.0001969,2]
[394575539,1763728246989,-250.0,0.0001969,2]
[394575540,1763728246998,-250.0,0.0001969,2]
[394575541,1763728247008,-250.0,0.0001969,2]
[394575542,1763728247018,-250.0,0.0001969,2]
[394575543,1763728247031,-250.0,0.0001969,2]
[394575544,1763728247044,-250.0,0.0001969,2]
[394575545,1763728247054,-151.0,0.000198,2]
[394575546,1763728247064,-192.82425,0.0001983,2]
[394575547,1763728247074,-398.59907508,0.00019866,2]
[394575548,1763728247098,-101.40092492,0.00019866,2]
[394575549,1763728247108,-462.39028908,0.00019899,2]
[394575550,1763728247120,-37.60971092,0.00019899,2]
[394575551,1763728247130,-492.39028906,0.00019899,2]
[394575552,1763728247143,-7.60971094,0.00019899,2]
[394575553,1763728247152,-267.365697,0.000199,7]
[394575554,1763728247162,-267.365697,0.000199,7]
[394575555,1763728247171,-267.365697,0.000199,7]
[394575556,1763728247182,-267.365697,0.000199,7]
[394575557,1763728247195,-151.0,0.000199,7]
[394575558,1763728247205,-151.0,0.000199,7]
[394575559,1763728247214,-155.857041,0.000199,7]
[394575560,1763728247226,-151.0,0.000199,7]
[394575561,1763728247238,-151.0,0.000199,7]
[394575562,1763728247248,-155.857041,0.000199,7]
[394575563,1763728247259,-151.0,0.000199,7]
[394575564,1763728247269,-151.0,0.000199,7]
[394575565,1763728247282,-265.256458,0.000199,7]
[394575566,1763728247292,-155.857041,0.000199,7]
[394575567,1763728247302,-151.0,0.000199,7]
[394575568,1763728247312,-155.857041,0.000199,7]
[394575569,1763728247322,-151.0,0.000199,7]
[394575570,1763728247332,-151.0,0.000199,7]
[394575571,1763728247342,-151.0,0.000199,7]
[394575572,1763728247352,-151.0,0.000199,7]
[394575573,1763728247361,-283.66364,0.000199,7]
[394575574,1763728247371,-283.66364,0.000199,7]
[394575575,1763728247381,-283.66364,0.000199,7]
[394575576,1763728247392,-283.66364,0.000199,7]
[394575577,1763728247402,-151.0,0.000199,7]
[394575578,1763728247411,-151.0,0.000199,7]
[394575579,1763728247421,-151.0,0.000199,7]
[394575580,1763728247430,-151.0,0.000199,7]
[394575581,1763728247440,-151.0,0.000199,7]
[394575582,1763728247449,-331.339116,0.000199,7]
[394575583,1763728247459,-331.339116,0.000199,7]
[394575584,1763728247469,-331.339116,0.000199,7]
[394575585,1763728247479,-331.339116,0.000199,7]
[394575586,1763728247489,-151.0,0.000199,7]
[394575587,1763728247499,-218.17346,0.000199,7]
[394575588,1763728247510,-218.17346,0.000199,7]
[394575589,1763728247520,-218.17346,0.000199,7]
[394575590,1763728247533,-218.17346,0.000199,7]
[394575591,1763728247544,-151.0,0.000199,7]
[394575592,1763728247553,-151.0,0.000199,7]
[394575593,1763728247563,-422.61207,0.000199,7]
[394575594,1763728247572,-151.0,0.000199,7]
[394575595,1763728247582,-151.0,0.000199,7]
[394575596,1763728247592,-422.61207,0.000199,7]
[394575597,1763728247601,-266.324504,0.000199,7]
[394575598,1763728247611,-422.61207,0.000199,7]
[394575599,1763728247620,-422.61207,0.000199,7]
[394575600,1763728247629,-151.0,0.000199,7]
[394575601,1763728247639,-151.0,0.000199,7]
[394575602,1763728247648,-151.0,0.000199,7]
[394575603,1763728247657,-151.0,0.000199,7]
[394575604,1763728247667,-151.0,0.000199,7]
[394575605,1763728247675,-151.0,0.000199,7]
[394575606,1763728247685,-151.0,0.000199,7]
[394575607,1763728247695,-151.0,0.000199,7]
[394575608,1763728247705,-151.0,0.000199,7]
[394575609,1763728247715,-151.0,0.000199,7]
[394575610,1763728247724,-156.863214,0.000199,7]
[394575611,1763728247734,-156.863214,0.000199,7]
[394575612,1763728247743,-151.0,0.000199,7]
[394575613,1763728247753,-263.22579,0.000199,7]
[394575614,1763728247763,-151.0,0.000199,7]
[394575615,1763728247773,-151.0,0.000199,7]
[394575616,1763728247788,-151.0,0.000199,7]
[394575617,1763728247797,-151.0,0.000199,7]
[394575618,1763728247807,-191.77945,0.000199,7]
[394575619,1763728247817,-2963.27203306,0.000199,2]
[394575624,1763728375072,10000.0,4.852e-05,2]
[394575625,1763728382193,0.01,4.852e-05,2]
[394575626,1763728382216,9999.99,4.852e-05,2]
[394575627,1763728389535,0.02,4.852e-05,2]
[394575628,1763728389559,609.72,4.852e-05,2]
[394575630,1763728484836,150.5,0.0002198,120]
[394575631,1763728485275,150.5,0.0002197,120]
[394575632,1763728485710,150.5,0.0002196,120]
[394575638,1763728767215,-1181.86361787,8e-05,2]
[394575639,1763728786996,1930.29102344,0.0001,3]
[394575640,1763728787022,3069.70897656,0.0001,3]
[394575649,1763728999233,-270.84487383,7.841e-05,2]
[394575650,1763729000785,-339.87371144,7.841e-05,2]
[394575664,1763729121664,-2402.41779686,7.685e-05,2]
[394575665,1763729121690,-2402.41779686,7.763e-05,2]
[394575666,1763729121712,-150.0,7.881e-05,2]
[394575667,1763729121733,-3013.13638213,8e-05,2]
[394575668,1763729121755,-1200.0,8.232e-05,2]
[394575669,1763729121778,-300.0,8.233e-05,2]
[394575670,1763729121801,-300.0,8.234e-05,2]
[394575671,1763729121838,-300.0,8.234e-05,2]
[394575672,1763729121861,-300.0,8.234e-05,2]
[394575673,1763729121883,-159.30119039,8.235e-05,2]
[394575674,1763729121905,-492.78983165,8.235e-05,2]
[394575675,1763729121926,-1132.24543881,8.235e-05,2]
[394575676,1763729121954,-1132.24543881,8.235e-05,2]
[394575677,1763729121975,-1132.24543881,8.235e-05,2]
[394575678,1763729121996,-1132.24543881,8.235e-05,2]
[394575679,1763729122020,-1132.24543881,8.235e-05,2]
[394575680,1763729122042,-1132.24543881,8.235e-05,2]
[394575681,1763729122064,-1132.24543881,8.235e-05,2]
[394575682,1763729122086,-1132.24543881,8.235e-05,2]
[394575683,1763729122107,-1132.24543881,8.235e-05,2]
[394575684,1763729122128,-1132.24543881,8.235e-05,2]
[394575685,1763729122149,-1132.24543881,8.235e-05,2]
[394575686,1763729122171,-1132.24543881,8.235e-05,2]
[394575687,1763729122197,-1132.24543881,8.235e-05,2]
[394575688,1763729122219,-1132.24543881,8.235e-05,2]
[394575689,1763729122242,-1132.24543881,8.235e-05,2]
[394575690,1763729122264,-1132.24543881,8.235e-05,2]
[394575691,1763729122285,-500.0,8.235e-05,2]
[394575692,1763729122307,-500.0,8.235e-05,2]
[394575693,1763729122336,-500.0,8.235e-05,2]
[394575694,1763729122357,-264.19293361,8.235e-05,2]
[394575695,1763729122385,-500.0,8.235e-05,2]
[394575696,1763729122410,-410.65212843,8.235e-05,2]
[394575697,1763729122443,-500.0,8.235e-05,2]
[394575698,1763729122475,-500.0,8.235e-05,2]
[394575699,1763729122505,-500.0,8.235e-05,2]
[394575700,1763729122531,-500.0,8.235e-05,2]
[394575701,1763729122559,-595.33535185,8.235e-05,2]
[394575702,1763729122592,-500.0,8.235e-05,2]
[394575703,1763729122620,-500.0,8.235e-05,2]
[394575704,1763729122648,-500.0,8.235e-05,2]
[394575705,1763729122680,-500.0,8.235e-05,2]
[394575706,1763729122717,-500.0,8.235e-05,2]
[394575707,1763729122746,-500.0,8.235e-05,2]
[394575708,1763729122775,-500.0,8.235e-05,2]
[394575709,1763729122806,-500.0,8.235e-05,2]
[394575710,1763729122838,-500.0,8.235e-05,2]
[394575711,1763729122867,-500.0,8.235e-05,2]
[394575712,1763729122893,-500.0,8.235e-05,2]
[394575713,1763729122919,-500.0,8.235e-05,2]
[394575714,1763729122950,-500.0,8.235e-05,2]
[394575715,1763729123216,-500.0,8.235e-05,2]
[394575716,1763729123249,-390.51657588,8.235e-05,2]
[394575717,1763729123277,-500.0,8.235e-05,2]
[394575718,1763729123303,-500.0,8.235e-05,2]
[394575719,1763729123330,-500.0,8.235e-05,2]
[394575720,1763729123358,-500.0,8.235e-05,2]
[394575721,1763729123382,-500.0,8.235e-05,2]
[394575722,1763729123405,-500.0,8.235e-05,2]
[394575723,1763729123432,-500.0,8.235e-05,2]
[394575724,1763729123477,-500.0,8.235e-05,2]
[394575725,1763729123503,-500.0,8.235e-05,2]
[394575726,1763729123530,-500.0,8.235e-05,2]
[394575727,1763729123555,-500.0,8.235e-05,2]
[394575728,1763729123582,-500.0,8.235e-05,2]
[394575729,1763729123610,-500.0,8.235e-05,2]
[394575730,1763729123633,-500.0,8.235e-05,2]
[394575731,1763729123657,-500.0,8.235e-05,2]
[394575732,1763729123678,-500.0,8.235e-05,2]
[394575733,1763729123700,-500.0,8.235e-05,2]
[394575734,1763729123733,-546.93032454,8.235e-05,2]
[394575735,1763729123755,-500.0,8.235e-05,2]
[394575736,1763729123778,-500.0,8.235e-05,2]
[394575737,1763729123800,-500.0,8.235e-05,2]
[394575738,1763729123821,-500.0,8.235e-05,2]
[394575739,1763729123844,-500.0,8.235e-05,2]
[394575740,1763729123865,-500.0,8.235e-05,2]
[394575741,1763729123889,-500.0,8.235e-05,2]
[394575742,1763729123912,-500.0,8.235e-05,2]
[394575743,1763729123934,-500.0,8.235e-05,2]
[394575744,1763729123957,-500.0,8.235e-05,2]
[394575745,1763729123980,-500.0,8.235e-05,2]
[394575746,1763729124002,-500.0,8.235e-05,2]
[394575747,1763729124024,-500.0,8.235e-05,2]
[394575748,1763729124045,-1222.82507392,8.235e-05,2]
[394575749,1763729124067,-1222.82507392,8.235e-05,2]
[394575750,1763729124088,-1222.82507392,8.235e-05,2]
[394575751,1763729124120,-1222.82507392,8.235e-05,2]
[394575752,1763729124144,-1222.82507392,8.235e-05,2]
[394575753,1763729124168,-1222.82507392,8.235e-05,2]
[394575754,1763729124191,-1222.82507392,8.235e-05,2]
[394575755,1763729124213,-1222.82507392,8.235e-05,2]
[394575756,1763729124237,-1222.82507392,8.235e-05,2]
[394575757,1763729124271,-500.0,8.235e-05,2]
[394575758,1763729124302,-500.0,8.235e-05,2]
[394575760,1763729124333,-500.0,8.235e-05,2]
[394575761,1763729124363,-500.0,8.235e-05,2]
[394575762,1763729124392,-500.0,8.235e-05,2]
[394575763,1763729124422,-500.0,8.235e-05,2]
[394575764,1763729124449,-500.0,8.235e-05,2]
[394575765,1763729124481,-500.0,8.235e-05,2]
[394575766,1763729124510,-500.0,8.235e-05,2]
[394575767,1763729124538,-500.0,8.235e-05,2]
[394575768,1763729124568,-500.0,8.235e-05,2]
[394575769,1763729124597,-500.0,8.235e-05,2]
[394575770,1763729124624,-500.0,8.235e-05,2]
[394575771,1763729124651,-616.14837243,8.235e-05,2]
[394575772,1763729124677,-500.0,8.235e-05,2]
[394575773,1763729124704,-500.0,8.235e-05,2]
[394575774,1763729124730,-500.0,8.235e-05,2]